[Event "Titled Tuesday Blitz November 14 Early 2023"]
[White "Vlassov, Nikolai"]
[Black "arenal72"]
[WhiteFideId "4103360"]
[WhiteElo "2608"]
[BlackElo "2507"]
[Result "1-0"]
[Round "11"]
[TimeControl "180+1"]
[Date "2023.11.14"]
[WhiteClock "0:00:39"]
[BlackClock "0:00:20"]
[Board "67"]

1. e4 {[%clk 0:03:00]}  Nc6 {[%clk 0:02:54]} 2. d4 {[%clk 0:03:00]}  d5 {[%clk 0:02:54]} 3. e5 {[%clk 0:02:57]}  Bf5 {[%clk 0:02:48]} 4. Nf3 {[%clk 0:02:51]}  Qd7 {[%clk 0:02:47]} 5. Bb5 {[%clk 0:02:36]}  f6 {[%clk 0:02:42]} 6. O-O {[%clk 0:02:34]}  O-O-O {[%clk 0:02:40]} 7. c3 {[%clk 0:02:28]}  a6 {[%clk 0:02:37]} 8. Ba4 {[%clk 0:02:26]}  g5 {[%clk 0:02:34]} 9. Re1 {[%clk 0:02:18]}  Bg7 {[%clk 0:02:28]} 10. Nbd2 {[%clk 0:02:14]}  g4 {[%clk 0:02:25]} 11. Nh4 {[%clk 0:02:14]}  b5 {[%clk 0:02:20]} 12. Nxf5 {[%clk 0:02:13]}  Qxf5 {[%clk 0:02:15]} 13. Bc2 {[%clk 0:02:12]}  Qh5 {[%clk 0:02:07]} 14. e6 {[%clk 0:02:07]}  Nh6 {[%clk 0:01:48]} 15. a4 {[%clk 0:02:06]}  b4 {[%clk 0:01:47]} 16. Qe2 {[%clk 0:02:00]}  Kb7 {[%clk 0:01:47]} 17. Bd3 {[%clk 0:01:56]}  Ra8 {[%clk 0:01:45]} 18. Nb3 {[%clk 0:01:52]}  Nf5 {[%clk 0:01:39]} 19. Nc5+ {[%clk 0:01:52]}  Ka7 {[%clk 0:01:25]} 20. Bxf5 {[%clk 0:01:49]}  Kb6 {[%clk 0:01:13]} 21. a5+ {[%clk 0:01:38]}  Nxa5 {[%clk 0:01:11]} 22. Bxg4 {[%clk 0:01:34]}  Qg6 {[%clk 0:01:06]} 23. cxb4 {[%clk 0:01:06]}  Nc4 {[%clk 0:01:01]} 24. b3 {[%clk 0:01:06]}  h5 {[%clk 0:00:58]} 25. Bf3 {[%clk 0:01:03]}  h4 {[%clk 0:00:45]} 26. bxc4 {[%clk 0:01:01]}  h3 {[%clk 0:00:42]} 27. Bxd5 {[%clk 0:00:55]}  Rhd8 {[%clk 0:00:35]} 28. Nd7+ {[%clk 0:00:50]}  Rxd7 {[%clk 0:00:29]} 29. exd7 {[%clk 0:00:50]}  c6 {[%clk 0:00:29]} 30. Bxc6 {[%clk 0:00:40]}  Kxc6 {[%clk 0:00:27]} 31. Qf3+ {[%clk 0:00:39]}  Kxd7 {[%clk 0:00:20]} 32. Qxa8 {[%clk 0:00:39]} 1-0


[Site "https://www.chess.com"]

[Event "Titled Tuesday Blitz November 14 Early 2023"]
[White "Ezat, Mohamed"]
[Black "EvgenyBurmakin"]
[WhiteFideId "10600906"]
[WhiteElo "2598"]
[BlackElo "2392"]
[Result "1-0"]
[Round "11"]
[TimeControl "180+1"]
[Date "2023.11.14"]
[WhiteClock "0:01:45"]
[BlackClock "0:00:05"]
[Board "69"]

1. e4 {[%clk 0:03:00]}  c5 {[%clk 0:02:59]} 2. d4 {[%clk 0:03:00]}  cxd4 {[%clk 0:03:00]} 3. c3 {[%clk 0:03:00]}  dxc3 {[%clk 0:03:01]} 4. Nxc3 {[%clk 0:03:00]}  e6 {[%clk 0:03:00]} 5. Nf3 {[%clk 0:03:01]}  Nc6 {[%clk 0:02:58]} 6. Bc4 {[%clk 0:03:01]}  Nf6 {[%clk 0:02:44]} 7. O-O {[%clk 0:03:01]}  Qc7 {[%clk 0:02:41]} 8. Qe2 {[%clk 0:02:56]}  Ng4 {[%clk 0:02:39]} 9. g3 {[%clk 0:02:56]}  a6 {[%clk 0:01:56]} 10. Nd5 {[%clk 0:02:47]}  exd5 {[%clk 0:01:31]} 11. exd5+ {[%clk 0:02:46]}  Ne7 {[%clk 0:01:18]} 12. Bf4 {[%clk 0:02:32]}  d6 {[%clk 0:01:18]} 13. Rac1 {[%clk 0:02:31]}  Qd7 {[%clk 0:01:03]} 14. Nd4 {[%clk 0:02:31]}  g6 {[%clk 0:00:47]} 15. Nb5 {[%clk 0:02:27]}  Kd8 {[%clk 0:00:22]} 16. Nxd6 {[%clk 0:02:23]}  Bg7 {[%clk 0:00:13]} 17. Nxf7+ {[%clk 0:02:22]}  Ke8 {[%clk 0:00:13]} 18. d6 {[%clk 0:02:22]}  Bf6 {[%clk 0:00:08]} 19. Nxh8 {[%clk 0:02:21]}  Bxh8 {[%clk 0:00:07]} 20. Rfe1 {[%clk 0:02:01]}  Bf6 {[%clk 0:00:08]} 21. dxe7 {[%clk 0:01:57]}  Bxe7 {[%clk 0:00:07]} 22. Bg5 {[%clk 0:01:51]}  b5 {[%clk 0:00:07]} 23. Qxe7+ {[%clk 0:01:49]}  Qxe7 {[%clk 0:00:07]} 24. Rxe7+ {[%clk 0:01:49]}  Kf8 {[%clk 0:00:08]} 25. Bd5 {[%clk 0:01:49]}  Rb8 {[%clk 0:00:05]} 26. Rf7+ {[%clk 0:01:45]} 1-0


[Site "https://www.chess.com"]

[Event "Titled Tuesday Blitz November 14 Early 2023"]
[White "Zavgorodniy, Sergiy"]
[Black "Shubenkova, Veronika"]
[WhiteFideId "14110148"]
[BlackFideId "44124040"]
[WhiteElo "2696"]
[BlackElo "2515"]
[Result "1-0"]
[Round "11"]
[TimeControl "180+1"]
[Date "2023.11.14"]
[WhiteClock "0:00:46"]
[BlackClock "0:00:02"]
[Board "72"]

1. d4 {[%clk 0:03:00]}  d5 {[%clk 0:02:58]} 2. c4 {[%clk 0:03:00]}  e6 {[%clk 0:02:58]} 3. Nf3 {[%clk 0:03:00]}  f5 {[%clk 0:02:58]} 4. g3 {[%clk 0:03:00]}  Nf6 {[%clk 0:02:58]} 5. Bg2 {[%clk 0:03:00]}  c6 {[%clk 0:02:58]} 6. O-O {[%clk 0:03:01]}  Bd6 {[%clk 0:02:58]} 7. b3 {[%clk 0:03:01]}  O-O {[%clk 0:02:57]} 8. Ba3 {[%clk 0:03:00]}  Bxa3 {[%clk 0:02:57]} 9. Nxa3 {[%clk 0:03:01]}  Qd6 {[%clk 0:02:58]} 10. Nc2 {[%clk 0:03:01]}  Nbd7 {[%clk 0:02:58]} 11. Nce1 {[%clk 0:03:01]}  Ne4 {[%clk 0:02:59]} 12. Nd3 {[%clk 0:03:00]}  b6 {[%clk 0:02:59]} 13. Qc2 {[%clk 0:03:00]}  Bb7 {[%clk 0:02:57]} 14. Rac1 {[%clk 0:02:58]}  Rac8 {[%clk 0:02:56]} 15. Qb2 {[%clk 0:02:59]}  c5 {[%clk 0:02:56]} 16. cxd5 {[%clk 0:02:57]}  Bxd5 {[%clk 0:02:46]} 17. dxc5 {[%clk 0:02:57]}  Ndxc5 {[%clk 0:02:46]} 18. Nxc5 {[%clk 0:02:57]}  Rxc5 {[%clk 0:02:46]} 19. Rxc5 {[%clk 0:02:56]}  Nxc5 {[%clk 0:02:45]} 20. Rd1 {[%clk 0:02:54]}  Rc8 {[%clk 0:02:41]} 21. Ne5 {[%clk 0:02:50]}  Ne4 {[%clk 0:02:28]} 22. Bxe4 {[%clk 0:02:33]}  fxe4 {[%clk 0:02:28]} 23. Nc4 {[%clk 0:02:26]}  Qc5 {[%clk 0:02:24]} 24. Ne3 {[%clk 0:02:26]}  Rf8 {[%clk 0:02:12]} 25. Qe5 {[%clk 0:02:12]}  h6 {[%clk 0:01:49]} 26. h4 {[%clk 0:02:06]}  Kh8 {[%clk 0:01:47]} 27. Kg2 {[%clk 0:02:03]}  Qb5 {[%clk 0:01:35]} 28. Rd2 {[%clk 0:01:54]}  Qa5 {[%clk 0:01:34]} 29. Qd4 {[%clk 0:01:42]}  Ba8 {[%clk 0:01:30]} 30. b4 {[%clk 0:01:38]}  Qa3 {[%clk 0:01:24]} 31. Rc2 {[%clk 0:01:32]}  e5 {[%clk 0:01:03]} 32. Qd6 {[%clk 0:01:26]}  Re8 {[%clk 0:00:45]} 33. Qd7 {[%clk 0:01:23]}  Rg8 {[%clk 0:00:40]} 34. Rc8 {[%clk 0:01:21]}  Qxb4 {[%clk 0:00:23]} 35. Nf5 {[%clk 0:01:05]}  e3+ {[%clk 0:00:22]} 36. f3 {[%clk 0:01:06]}  Bxf3+ {[%clk 0:00:01]} 37. Kxf3 {[%clk 0:01:03]}  e4+ {[%clk 0:00:01]} 38. Kg4 {[%clk 0:01:03]}  Qb2 {[%clk 0:00:01]} 39. Rxg8+ {[%clk 0:00:58]}  Kxg8 {[%clk 0:00:02]} 40. Ne7+ {[%clk 0:00:46]}  Kh7 {[%clk 0:00:02]} 41. Qf5+ {[%clk 0:00:45]}  Kh8 {[%clk 0:00:02]} 42. Qf8+ {[%clk 0:00:45]}  Kh7 {[%clk 0:00:02]} 43. Qg8# {[%clk 0:00:46]} 1-0


[Site "https://www.chess.com"]

[Event "Titled Tuesday Blitz November 14 Early 2023"]
[White "Krivonosov, Oleg"]
[Black "Cristi_Coca"]
[WhiteFideId "11600349"]
[WhiteElo "2688"]
[BlackElo "2514"]
[Result "1-0"]
[Round "11"]
[TimeControl "180+1"]
[Date "2023.11.14"]
[WhiteClock "0:01:48"]
[BlackClock "0:00:46"]
[Board "73"]

1. Nf3 {[%clk 0:03:00]}  Nf6 {[%clk 0:02:59]} 2. c4 {[%clk 0:03:00]}  g6 {[%clk 0:02:59]} 3. Nc3 {[%clk 0:02:59]}  Bg7 {[%clk 0:02:59]} 4. e4 {[%clk 0:02:59]}  d6 {[%clk 0:02:59]} 5. d4 {[%clk 0:02:59]}  O-O {[%clk 0:03:00]} 6. Be2 {[%clk 0:02:59]}  Nbd7 {[%clk 0:03:00]} 7. O-O {[%clk 0:02:58]}  e5 {[%clk 0:03:01]} 8. Re1 {[%clk 0:02:58]}  Qe7 {[%clk 0:03:01]} 9. Bf1 {[%clk 0:02:57]}  c6 {[%clk 0:03:01]} 10. h3 {[%clk 0:02:57]}  h6 {[%clk 0:02:58]} 11. Be3 {[%clk 0:02:56]}  Re8 {[%clk 0:02:49]} 12. Qd2 {[%clk 0:02:55]}  Kh7 {[%clk 0:02:46]} 13. Rad1 {[%clk 0:02:55]}  Nh5 {[%clk 0:02:45]} 14. dxe5 {[%clk 0:02:52]}  Nxe5 {[%clk 0:02:38]} 15. Nxe5 {[%clk 0:02:46]}  Bxe5 {[%clk 0:02:38]} 16. f4 {[%clk 0:02:34]}  Bxc3 {[%clk 0:02:31]} 17. Qxc3 {[%clk 0:02:35]}  Ng3 {[%clk 0:02:17]} 18. Bf2 {[%clk 0:02:25]}  Nxe4 {[%clk 0:02:13]} 19. Rxe4 {[%clk 0:02:24]}  Qxe4 {[%clk 0:02:12]} 20. Re1 {[%clk 0:02:24]}  Bf5 {[%clk 0:01:48]} 21. Rxe4 {[%clk 0:02:23]}  Rxe4 {[%clk 0:01:49]} 22. Qf6 {[%clk 0:02:19]}  Be6 {[%clk 0:01:35]} 23. Bd4 {[%clk 0:02:16]}  Rg8 {[%clk 0:01:34]} 24. Kf2 {[%clk 0:02:07]}  d5 {[%clk 0:01:24]} 25. Bd3 {[%clk 0:02:01]}  Rxd4 {[%clk 0:01:13]} 26. Qxd4 {[%clk 0:01:59]}  Rd8 {[%clk 0:01:13]} 27. c5 {[%clk 0:01:55]}  Re8 {[%clk 0:01:11]} 28. g4 {[%clk 0:01:54]}  Bd7 {[%clk 0:00:46]} 29. f5 {[%clk 0:01:48]} 1-0


[Site "https://www.chess.com"]

[Event "Titled Tuesday Blitz November 14 Early 2023"]
[White "Kanyamarala, Tarun"]
[Black "Djokic, Mihailo"]
[WhiteFideId "45004714"]
[BlackFideId "976440"]
[WhiteElo "2509"]
[BlackElo "2681"]
[Result "0-1"]
[Round "11"]
[TimeControl "180+1"]
[Date "2023.11.14"]
[WhiteClock "0:00:03"]
[BlackClock "0:00:16"]
[Board "74"]

1. d4 {[%clk 0:03:00]}  Nf6 {[%clk 0:02:58]} 2. c4 {[%clk 0:03:00]}  g6 {[%clk 0:02:58]} 3. Nc3 {[%clk 0:02:59]}  Bg7 {[%clk 0:02:59]} 4. e4 {[%clk 0:02:59]}  O-O {[%clk 0:03:00]} 5. e5 {[%clk 0:02:58]}  Ne8 {[%clk 0:02:59]} 6. Nf3 {[%clk 0:02:58]}  d6 {[%clk 0:03:00]} 7. exd6 {[%clk 0:02:57]}  exd6 {[%clk 0:02:59]} 8. Be2 {[%clk 0:02:55]}  Nf6 {[%clk 0:02:58]} 9. h3 {[%clk 0:02:50]}  Re8 {[%clk 0:02:58]} 10. O-O {[%clk 0:02:50]}  Bf5 {[%clk 0:02:57]} 11. Nh4 {[%clk 0:02:47]}  Bd7 {[%clk 0:02:57]} 12. Bd3 {[%clk 0:02:39]}  Nc6 {[%clk 0:02:56]} 13. Nf3 {[%clk 0:02:39]}  Nb4 {[%clk 0:02:50]} 14. Bb1 {[%clk 0:02:38]}  c5 {[%clk 0:02:50]} 15. d5 {[%clk 0:02:33]}  Qc8 {[%clk 0:02:48]} 16. Bf4 {[%clk 0:02:29]}  Bf8 {[%clk 0:02:44]} 17. Nd2 {[%clk 0:02:09]}  Bf5 {[%clk 0:02:43]} 18. a3 {[%clk 0:02:05]}  Nd3 {[%clk 0:02:40]} 19. Bxd3 {[%clk 0:02:02]}  Bxd3 {[%clk 0:02:41]} 20. Re1 {[%clk 0:02:02]}  Qf5 {[%clk 0:02:42]} 21. Qf3 {[%clk 0:01:59]}  g5 {[%clk 0:02:34]} 22. Bg3 {[%clk 0:01:59]}  Qxf3 {[%clk 0:02:34]} 23. Nxf3 {[%clk 0:01:59]}  Bxc4 {[%clk 0:02:33]} 24. Nxg5 {[%clk 0:01:57]}  Nxd5 {[%clk 0:02:33]} 25. Nce4 {[%clk 0:01:49]}  f5 {[%clk 0:02:23]} 26. Nxd6 {[%clk 0:01:47]}  Bxd6 {[%clk 0:02:20]} 27. Bxd6 {[%clk 0:01:47]}  Rad8 {[%clk 0:02:15]} 28. Bxc5 {[%clk 0:01:46]}  b6 {[%clk 0:02:14]} 29. Bd4 {[%clk 0:01:38]}  Nf4 {[%clk 0:02:11]} 30. Bf6 {[%clk 0:01:31]}  Rc8 {[%clk 0:01:58]} 31. Nf3 {[%clk 0:01:24]}  Nd3 {[%clk 0:01:56]} 32. Red1 {[%clk 0:00:58]}  Rc6 {[%clk 0:01:52]} 33. Bc3 {[%clk 0:00:55]}  Nf4 {[%clk 0:01:47]} 34. Kh2 {[%clk 0:00:43]}  Rg6 {[%clk 0:01:39]} 35. Nh4 {[%clk 0:00:42]}  Rg5 {[%clk 0:01:29]} 36. Bf6 {[%clk 0:00:41]}  Rh5 {[%clk 0:01:29]} 37. Rd7 {[%clk 0:00:37]}  Bf7 {[%clk 0:01:27]} 38. Rg1 {[%clk 0:00:26]}  Nd5 {[%clk 0:01:27]} 39. g4 {[%clk 0:00:18]}  fxg4 {[%clk 0:01:24]} 40. Rxg4+ {[%clk 0:00:17]}  Bg6 {[%clk 0:01:18]} 41. Nxg6 {[%clk 0:00:15]}  Nxf6 {[%clk 0:01:18]} 42. Ne7+ {[%clk 0:00:14]}  Kf7 {[%clk 0:01:18]} 43. Rf4 {[%clk 0:00:06]}  Rxe7 {[%clk 0:01:16]} 44. Rxe7+ {[%clk 0:00:06]}  Kxe7 {[%clk 0:01:17]} 45. Ra4 {[%clk 0:00:06]}  a5 {[%clk 0:01:17]} 46. b4 {[%clk 0:00:06]}  Nd7 {[%clk 0:01:10]} 47. bxa5 {[%clk 0:00:06]}  Rxa5 {[%clk 0:01:11]} 48. Rxa5 {[%clk 0:00:06]}  bxa5 {[%clk 0:01:12]} 49. Kg3 {[%clk 0:00:06]}  Kd6 {[%clk 0:01:13]} 50. Kf4 {[%clk 0:00:06]}  Kd5 {[%clk 0:01:13]} 51. Kg5 {[%clk 0:00:07]}  a4 {[%clk 0:01:13]} 52. Kh6 {[%clk 0:00:07]}  Ke4 {[%clk 0:01:13]} 53. Kxh7 {[%clk 0:00:08]}  Kf5 {[%clk 0:00:59]} 54. Kg7 {[%clk 0:00:07]}  Kg5 {[%clk 0:00:58]} 55. Kf7 {[%clk 0:00:08]}  Ne5+ {[%clk 0:00:57]} 56. Ke6 {[%clk 0:00:08]}  Nc4 {[%clk 0:00:58]} 57. Kd5 {[%clk 0:00:08]}  Nxa3 {[%clk 0:00:58]} 58. Kd4 {[%clk 0:00:09]}  Kf4 {[%clk 0:00:41]} 59. Kc3 {[%clk 0:00:08]}  Nb5+ {[%clk 0:00:35]} 60. Kb2 {[%clk 0:00:08]}  Kf3 {[%clk 0:00:33]} 61. Ka2 {[%clk 0:00:08]}  Ke4 {[%clk 0:00:29]} 62. Kb2 {[%clk 0:00:07]}  Kd4 {[%clk 0:00:25]} 63. h4 {[%clk 0:00:06]}  Ke5 {[%clk 0:00:23]} 64. Kc2 {[%clk 0:00:05]}  Kf4 {[%clk 0:00:22]} 65. Kd3 {[%clk 0:00:05]}  Kg4 {[%clk 0:00:17]} 66. f4 {[%clk 0:00:04]}  Kxf4 {[%clk 0:00:16]} 67. Kc4 {[%clk 0:00:05]}  a3 {[%clk 0:00:16]} 68. Kb3 {[%clk 0:00:03]}  Kg4 {[%clk 0:00:16]} 0-1


[Site "https://www.chess.com"]

[Event "Titled Tuesday Blitz November 14 Early 2023"]
[White "Nagare Kaivalya Sandip"]
[Black "Erzhanov, Arman"]
[WhiteFideId "25957929"]
[BlackFideId "4138821"]
[WhiteElo "2647"]
[BlackElo "2508"]
[Result "1-0"]
[Round "11"]
[TimeControl "180+1"]
[Date "2023.11.14"]
[WhiteClock "0:00:07"]
[BlackClock "0:00:51"]
[Board "76"]

1. e4 {[%clk 0:02:48]}  c5 {[%clk 0:02:59]} 2. Nf3 {[%clk 0:02:48]}  Nc6 {[%clk 0:02:58]} 3. Nc3 {[%clk 0:02:48]}  Nf6 {[%clk 0:02:58]} 4. d4 {[%clk 0:02:47]}  cxd4 {[%clk 0:02:57]} 5. Nxd4 {[%clk 0:02:48]}  e5 {[%clk 0:02:58]} 6. Ndb5 {[%clk 0:02:48]}  h6 {[%clk 0:02:58]} 7. Nd5 {[%clk 0:02:48]}  Nxd5 {[%clk 0:02:57]} 8. exd5 {[%clk 0:02:49]}  a6 {[%clk 0:02:57]} 9. Nc3 {[%clk 0:02:45]}  Nd4 {[%clk 0:02:57]} 10. Ne4 {[%clk 0:02:44]}  d6 {[%clk 0:02:54]} 11. c3 {[%clk 0:02:44]}  Nf5 {[%clk 0:02:53]} 12. Bd3 {[%clk 0:02:43]}  Be7 {[%clk 0:02:52]} 13. O-O {[%clk 0:02:43]}  O-O {[%clk 0:02:52]} 14. Qc2 {[%clk 0:02:42]}  Nh4 {[%clk 0:02:51]} 15. f4 {[%clk 0:02:29]}  f5 {[%clk 0:02:49]} 16. Ng3 {[%clk 0:02:29]}  e4 {[%clk 0:02:47]} 17. Be2 {[%clk 0:02:29]}  Bd7 {[%clk 0:02:40]} 18. Be3 {[%clk 0:02:29]}  Rc8 {[%clk 0:02:40]} 19. a4 {[%clk 0:02:29]}  Qa5 {[%clk 0:02:37]} 20. Rfd1 {[%clk 0:02:27]}  Bf6 {[%clk 0:02:30]} 21. Qb3 {[%clk 0:02:25]}  Qc7 {[%clk 0:02:22]} 22. a5 {[%clk 0:02:22]}  g5 {[%clk 0:02:17]} 23. Nh5 {[%clk 0:01:56]}  g4 {[%clk 0:02:10]} 24. Nxf6+ {[%clk 0:01:56]}  Rxf6 {[%clk 0:02:11]} 25. Rd4 {[%clk 0:01:53]}  Rg6 {[%clk 0:02:08]} 26. Rc4 {[%clk 0:01:52]}  Qb8 {[%clk 0:02:07]} 27. Rxc8+ {[%clk 0:01:52]}  Bxc8 {[%clk 0:02:07]} 28. c4 {[%clk 0:01:49]}  Qc7 {[%clk 0:02:04]} 29. c5 {[%clk 0:01:47]}  dxc5 {[%clk 0:01:56]} 30. d6+ {[%clk 0:01:45]}  Qf7 {[%clk 0:01:56]} 31. Qxf7+ {[%clk 0:01:34]}  Kxf7 {[%clk 0:01:56]} 32. Bxc5 {[%clk 0:01:34]}  Ke8 {[%clk 0:01:45]} 33. Kf1 {[%clk 0:01:31]}  Rf6 {[%clk 0:01:38]} 34. Rc1 {[%clk 0:01:24]}  Bd7 {[%clk 0:01:38]} 35. Bb4 {[%clk 0:01:06]}  Ng6 {[%clk 0:01:37]} 36. Rc7 {[%clk 0:01:06]}  Nxf4 {[%clk 0:01:30]} 37. Rxb7 {[%clk 0:01:01]}  Nxe2 {[%clk 0:01:30]} 38. Kxe2 {[%clk 0:01:02]}  f4 {[%clk 0:01:30]} 39. Bc5 {[%clk 0:01:00]}  e3 {[%clk 0:01:27]} 40. b4 {[%clk 0:00:56]}  Bb5+ {[%clk 0:01:21]} 41. Rxb5 {[%clk 0:00:44]}  axb5 {[%clk 0:01:22]} 42. a6 {[%clk 0:00:44]}  Kd7 {[%clk 0:01:23]} 43. a7 {[%clk 0:00:44]}  Rf8 {[%clk 0:01:23]} 44. Ke1 {[%clk 0:00:39]}  Re8 {[%clk 0:01:22]} 45. Ke2 {[%clk 0:00:37]}  Kc6 {[%clk 0:01:22]} 46. h3 {[%clk 0:00:34]}  h5 {[%clk 0:01:22]} 47. h4 {[%clk 0:00:32]}  Rd8 {[%clk 0:01:21]} 48. g3 {[%clk 0:00:22]}  fxg3 {[%clk 0:01:20]} 49. Kxe3 {[%clk 0:00:23]}  Re8+ {[%clk 0:01:19]} 50. Kf4 {[%clk 0:00:23]}  g2 {[%clk 0:01:19]} 51. Kg5 {[%clk 0:00:22]}  Kb7 {[%clk 0:01:08]} 52. Kf6 {[%clk 0:00:15]}  Rc8 {[%clk 0:01:06]} 53. d7 {[%clk 0:00:14]}  Rxc5 {[%clk 0:01:00]} 54. a8=Q+ {[%clk 0:00:13]}  Kxa8 {[%clk 0:00:58]} 55. d8=Q+ {[%clk 0:00:13]}  Kb7 {[%clk 0:00:58]} 56. Qd7+ {[%clk 0:00:11]}  Rc7 {[%clk 0:00:56]} 57. Qxb5+ {[%clk 0:00:11]}  Kc8 {[%clk 0:00:57]} 58. Qf5+ {[%clk 0:00:10]}  Kb7 {[%clk 0:00:55]} 59. Qb5+ {[%clk 0:00:08]}  Kc8 {[%clk 0:00:55]} 60. Qa6+ {[%clk 0:00:07]}  Kd8 {[%clk 0:00:53]} 61. Qa1 {[%clk 0:00:05]}  Rc2 {[%clk 0:00:47]} 62. Qg1 {[%clk 0:00:04]}  Rb2 {[%clk 0:00:45]} 63. Kg5 {[%clk 0:00:04]}  Rxb4 {[%clk 0:00:44]} 64. Kxh5 {[%clk 0:00:04]}  Re4 {[%clk 0:00:42]} 65. Qxg2 {[%clk 0:00:04]}  Re5+ {[%clk 0:00:40]} 66. Kg6 {[%clk 0:00:03]}  Re7 {[%clk 0:00:41]} 67. h5 {[%clk 0:00:03]}  Ke8 {[%clk 0:00:42]} 68. h6 {[%clk 0:00:03]}  Re6+ {[%clk 0:00:43]} 69. Kg5 {[%clk 0:00:03]}  Re7 {[%clk 0:00:44]} 70. Qa8+ {[%clk 0:00:03]}  Kf7 {[%clk 0:00:44]} 71. h7 {[%clk 0:00:03]}  Re5+ {[%clk 0:00:45]} 72. Kf4 {[%clk 0:00:03]}  Re8 {[%clk 0:00:46]} 73. Qxe8+ {[%clk 0:00:03]}  Kxe8 {[%clk 0:00:47]} 74. h8=Q+ {[%clk 0:00:04]}  Kf7 {[%clk 0:00:47]} 75. Kxg4 {[%clk 0:00:04]}  Ke6 {[%clk 0:00:48]} 76. Qd4 {[%clk 0:00:05]}  Ke7 {[%clk 0:00:48]} 77. Kf5 {[%clk 0:00:06]}  Kf7 {[%clk 0:00:49]} 78. Qd7+ {[%clk 0:00:06]}  Kf8 {[%clk 0:00:50]} 79. Kf6 {[%clk 0:00:07]}  Kg8 {[%clk 0:00:51]} 80. Qg7# {[%clk 0:00:07]} 1-0


[Site "https://www.chess.com"]

[Event "Titled Tuesday Blitz November 14 Early 2023"]
[White "Borgaonkar Akshay"]
[Black "Hajiyev, Kanan"]
[WhiteFideId "25639110"]
[BlackFideId "13404148"]
[WhiteElo "2627"]
[BlackElo "2486"]
[Result "0-1"]
[Round "11"]
[TimeControl "180+1"]
[Date "2023.11.14"]
[WhiteClock "0:00:00"]
[BlackClock "0:00:08"]
[Board "78"]

1. d4 {[%clk 0:03:00]}  d5 {[%clk 0:03:00]} 2. Bf4 {[%clk 0:03:00]}  c5 {[%clk 0:03:00]} 3. e3 {[%clk 0:02:58]}  cxd4 {[%clk 0:03:01]} 4. exd4 {[%clk 0:02:58]}  Nc6 {[%clk 0:03:02]} 5. Nf3 {[%clk 0:02:57]}  Nf6 {[%clk 0:03:03]} 6. c3 {[%clk 0:02:56]}  Bg4 {[%clk 0:03:03]} 7. Nbd2 {[%clk 0:02:55]}  e6 {[%clk 0:03:03]} 8. Bd3 {[%clk 0:02:53]}  Bd6 {[%clk 0:03:02]} 9. Bxd6 {[%clk 0:02:53]}  Qxd6 {[%clk 0:03:03]} 10. O-O {[%clk 0:02:54]}  O-O {[%clk 0:03:04]} 11. Re1 {[%clk 0:02:52]}  Rab8 {[%clk 0:03:04]} 12. Qc2 {[%clk 0:02:50]}  Qc7 {[%clk 0:03:05]} 13. Ne5 {[%clk 0:02:48]}  Bh5 {[%clk 0:03:05]} 14. f4 {[%clk 0:02:45]}  Rfc8 {[%clk 0:03:04]} 15. Rac1 {[%clk 0:02:42]}  Bg6 {[%clk 0:03:01]} 16. Bxg6 {[%clk 0:02:35]}  hxg6 {[%clk 0:03:02]} 17. Qd3 {[%clk 0:02:30]}  b5 {[%clk 0:02:58]} 18. Ndf3 {[%clk 0:02:25]}  Ne4 {[%clk 0:02:56]} 19. Ng5 {[%clk 0:02:22]}  Nxe5 {[%clk 0:02:55]} 20. dxe5 {[%clk 0:02:03]}  Qc5+ {[%clk 0:02:53]} 21. Qd4 {[%clk 0:02:01]}  Nxg5 {[%clk 0:02:45]} 22. fxg5 {[%clk 0:01:59]}  b4 {[%clk 0:02:39]} 23. Qxc5 {[%clk 0:01:52]}  Rxc5 {[%clk 0:02:40]} 24. cxb4 {[%clk 0:01:52]}  Rxc1 {[%clk 0:02:37]} 25. Rxc1 {[%clk 0:01:53]}  Rxb4 {[%clk 0:02:37]} 26. Rc8+ {[%clk 0:01:52]}  Kh7 {[%clk 0:02:38]} 27. Rc7 {[%clk 0:01:53]}  a5 {[%clk 0:02:29]} 28. b3 {[%clk 0:01:50]}  a4 {[%clk 0:02:26]} 29. Rxf7 {[%clk 0:01:47]}  axb3 {[%clk 0:02:26]} 30. axb3 {[%clk 0:01:48]}  Re4 {[%clk 0:02:22]} 31. h4 {[%clk 0:01:40]}  Rxe5 {[%clk 0:02:20]} 32. Kf2 {[%clk 0:01:36]}  Re4 {[%clk 0:02:17]} 33. g3 {[%clk 0:01:35]}  Rb4 {[%clk 0:02:15]} 34. Re7 {[%clk 0:01:35]}  Rb6 {[%clk 0:02:14]} 35. Re8 {[%clk 0:01:33]}  Rd6 {[%clk 0:02:07]} 36. Ke3 {[%clk 0:01:32]}  Rb6 {[%clk 0:02:07]} 37. Kf2 {[%clk 0:01:17]}  d4 {[%clk 0:02:02]} 38. g4 {[%clk 0:01:16]}  Rd6 {[%clk 0:01:31]} 39. Ke2 {[%clk 0:01:11]}  Rb6 {[%clk 0:01:26]} 40. Kf2 {[%clk 0:01:03]}  Rxb3 {[%clk 0:01:21]} 41. Rxe6 {[%clk 0:01:03]}  Rh3 {[%clk 0:01:19]} 42. Rd6 {[%clk 0:01:02]}  d3 {[%clk 0:01:18]} 43. Kg2 {[%clk 0:00:58]}  Re3 {[%clk 0:01:13]} 44. Kf2 {[%clk 0:00:52]}  Re2+ {[%clk 0:01:04]} 45. Kg3 {[%clk 0:00:49]}  Rd2 {[%clk 0:00:54]} 46. h5 {[%clk 0:00:41]}  gxh5 {[%clk 0:00:55]} 47. gxh5 {[%clk 0:00:42]}  Rd1 {[%clk 0:00:52]} 48. Kg2 {[%clk 0:00:42]}  Rd2+ {[%clk 0:00:50]} 49. Kh3 {[%clk 0:00:39]}  Rd1 {[%clk 0:00:49]} 50. Rd5 {[%clk 0:00:38]}  Rh1+ {[%clk 0:00:38]} 51. Kg4 {[%clk 0:00:37]}  Rg1+ {[%clk 0:00:35]} 52. Kf4 {[%clk 0:00:37]}  Rd1 {[%clk 0:00:31]} 53. Rd8 {[%clk 0:00:35]}  Rf1+ {[%clk 0:00:30]} 54. Kg4 {[%clk 0:00:34]}  Rg1+ {[%clk 0:00:30]} 55. Kf4 {[%clk 0:00:34]}  Rf1+ {[%clk 0:00:30]} 56. Ke3 {[%clk 0:00:35]}  Re1+ {[%clk 0:00:16]} 57. Kf3 {[%clk 0:00:34]}  Rf1+ {[%clk 0:00:14]} 58. Kg2 {[%clk 0:00:34]}  Rf5 {[%clk 0:00:11]} 59. g6+ {[%clk 0:00:17]}  Kh6 {[%clk 0:00:12]} 60. Rxd3 {[%clk 0:00:14]}  Rxh5 {[%clk 0:00:09]} 61. Rd8 {[%clk 0:00:14]}  Kxg6 {[%clk 0:00:09]} 62. Kf3 {[%clk 0:00:14]}  Rg5 {[%clk 0:00:09]} 63. Kf4 {[%clk 0:00:14]}  Rb5 {[%clk 0:00:09]} 64. Rd6+ {[%clk 0:00:14]}  Kf7 {[%clk 0:00:09]} 65. Ra6 {[%clk 0:00:14]}  Rb4+ {[%clk 0:00:09]} 66. Kf5 {[%clk 0:00:14]}  Rb5+ {[%clk 0:00:10]} 67. Kg4 {[%clk 0:00:13]}  Kg8 {[%clk 0:00:11]} 68. Kh4 {[%clk 0:00:13]}  Kh7 {[%clk 0:00:11]} 69. Ra8 {[%clk 0:00:13]}  Rb4+ {[%clk 0:00:11]} 70. Kg5 {[%clk 0:00:13]}  Rb5+ {[%clk 0:00:12]} 71. Kf4 {[%clk 0:00:14]}  Kg6 {[%clk 0:00:13]} 72. Ra6+ {[%clk 0:00:13]}  Kh5 {[%clk 0:00:14]} 73. Ra8 {[%clk 0:00:12]}  Rb7 {[%clk 0:00:12]} 74. Kf5 {[%clk 0:00:11]}  Rf7+ {[%clk 0:00:12]} 75. Ke4 {[%clk 0:00:10]}  g5 {[%clk 0:00:12]} 76. Ra1 {[%clk 0:00:10]}  g4 {[%clk 0:00:11]} 77. Rh1+ {[%clk 0:00:07]}  Kg5 {[%clk 0:00:11]} 78. Ke3 {[%clk 0:00:08]}  g3 {[%clk 0:00:11]} 79. Rh8 {[%clk 0:00:05]}  Kg4 {[%clk 0:00:11]} 80. Ke2 {[%clk 0:00:05]}  g2 {[%clk 0:00:11]} 81. Rh6 {[%clk 0:00:02]}  Kg3 {[%clk 0:00:11]} 82. Rg6+ {[%clk 0:00:02]}  Kh2 {[%clk 0:00:11]} 83. Rh6+ {[%clk 0:00:03]}  Kg1 {[%clk 0:00:12]} 84. Re6 {[%clk 0:00:04]}  Rf5 {[%clk 0:00:11]} 85. Ke1 {[%clk 0:00:03]}  Rh5 {[%clk 0:00:08]} 86. Re8 {[%clk 0:00:00]}  Kh1 {[%clk 0:00:08]} 0-1


[Site "https://www.chess.com"]